bitfinex/quotes_SOLUSD_20251115
["timestamp","ask_amount","ask_price","bid_price","bid_amount"]
[1763224385041,2.92890026,141.34,141.32,62.51]
[1763224386855,2.92890026,141.35,141.33,0.71]
[1763224388243,2.92890026,141.35,141.33,62.51]
[1763224388940,2.92890026,141.35,141.33,61.8]
[1763224389145,23.3612,141.36,141.33,61.8]
[1763224389146,2.92890026,141.34,141.33,61.8]
[1763224389525,3.63890026,141.35,141.33,61.8]
[1763224389721,2.92890026,141.35,141.33,62.51]
[1763224390844,2.92890026,141.42,141.33,62.51]
[1763224390845,0.71,141.44,141.34,3.63890026]
[1763224391020,2.92890026,141.4,141.36,2.92890026]
[1763224391433,2.92890026,141.4,141.37,0.71]
[1763224391830,0.71,141.42,141.37,0.71]
[1763224392039,2.92890026,141.4,141.37,0.71]
[1763224392635,2.92890026,141.41,141.37,0.71]
[1763224393119,3.60890026,141.41,141.37,0.71]
[1763224393520,2.92890026,141.39,141.35,65.43890026]
[1763224393726,2.92890026,141.39,141.36,0.71]
[1763224396345,2.92890026,141.4,141.36,3.63890026]
[1763224396727,2.92890026,141.4,141.37,0.71]
[1763224397134,3.60890026,141.41,141.37,0.71]
[1763224398246,2.92890026,141.4,141.37,0.71]
[1763224398827,3.60890026,141.4,141.37,0.71]
[1763224399347,2.92890026,141.4,141.37,0.71]
[1763224400447,2.92890026,141.4,141.37,62.51]
[1763224401242,2.92890026,141.4,141.38,0.71]
[1763224401635,2.92890026,141.4,141.37,62.51]
[1763224403137,22.6512,141.43,141.39,2.92890026]
[1763224403353,3.60890026,141.46,141.41,2.92890026]
[1763224403544,22.6512,141.44,141.41,64.72890026]
[1763224403740,17.0,141.47,141.42,0.71]
[1763224403940,19.92890026,141.47,141.42,0.71]
[1763224404134,19.92890026,141.47,141.42,3.63890026]
[1763224404339,20.60890026,141.47,141.42,3.63890026]
[1763224404644,20.60890026,141.47,141.43,0.71]
[1763224404844,2.92890026,141.46,141.43,0.71]
[1763224405255,25.58010026,141.44,141.37,61.8]
[1763224405555,2.92890026,141.41,141.38,0.71]
[1763224408874,1.87733874,141.41,141.38,0.71]
[1763224409246,1.87733874,141.4,141.38,62.51]
[1763224409556,1.87733874,141.4,141.38,61.8]
[1763224409937,0.68,141.41,141.38,61.8]
[1763224410137,0.68,141.41,141.38,62.51]
[1763224410138,1.87733874,141.4,141.38,62.51]
[1763224410351,1.87733874,141.4,141.38,61.8]
[1763224410560,2.55733874,141.4,141.38,61.8]
[1763224411144,1.87733874,141.4,141.38,62.51]
[1763224411874,24.52853874,141.42,141.39,0.71]
[1763224412039,24.52853874,141.43,141.39,0.71]
[1763224412245,24.52853874,141.43,141.39,62.51]
[1763224412445,1.87733874,141.42,141.39,62.51]
[1763224412646,1.87733874,141.45,141.4,2.58733874]
[1763224412866,1.87733874,141.45,141.41,0.71]
[1763224413047,2.55733874,141.46,141.41,2.58733874]
[1763224413369,1.87733874,141.46,141.41,0.71]
[1763224413544,1.87733874,141.45,141.42,0.71]
[1763224413744,1.87733874,141.46,141.42,62.51]
[1763224413960,18.87733874,141.47,141.42,64.38733874]
[1763224414161,18.87733874,141.47,141.43,0.71]
[1763224414345,17.0,141.47,141.43,2.58733874]
[1763224414545,18.87733874,141.47,141.43,0.71]
[1763224414769,18.87733874,141.47,141.44,0.71]
[1763224414962,17.0,141.47,141.44,0.71]
[1763224416349,18.87733874,141.47,141.44,0.71]
[1763224416573,17.0,141.47,141.44,0.71]
[1763224416969,1.87733874,141.48,141.44,0.71]
[1763224417160,1.87733874,141.48,141.44,62.51]
[1763224417577,1.87733874,141.48,141.45,0.71]
[1763224417953,0.2,141.52,141.45,64.38733874]
[1763224418157,1.87733874,141.5,141.46,1.87733874]
[1763224418460,22.6512,141.51,141.46,2.58733874]
[1763224418658,1.87733874,141.5,141.47,0.71]
[1763224419046,24.52853874,141.51,141.47,0.71]
[1763224419249,22.6512,141.51,141.47,2.58733874]
[1763224419455,24.52853874,141.51,141.47,2.58733874]
[1763224419761,25.20853874,141.51,141.48,0.71]
[1763224419961,22.6512,141.51,141.48,62.51]
[1763224420169,1.87733874,141.5,141.48,61.8]
[1763224420668,1.87733874,141.5,141.48,62.51]
[1763224420872,1.87733874,141.5,141.48,61.8]
[1763224421054,23.3312,141.51,141.48,62.51]
[1763224421466,1.87733874,141.5,141.48,62.51]
[1763224421656,23.3312,141.51,141.48,0.71]
[1763224421977,1.87733874,141.5,141.48,0.71]
[1763224424379,24.52853874,141.51,141.48,0.71]
[1763224425354,1.87733874,141.5,141.48,0.71]
[1763224426465,2.07733874,141.52,141.48,62.51]
[1763224426664,0.2,141.52,141.48,64.38733874]
[1763224426878,0.2,141.52,141.49,0.7]
[1763224429071,0.2,141.52,141.49,2.57733874]
[1763224429273,0.2,141.52,141.5,0.7]
[1763224429785,0.2,141.52,141.5,62.5]
[1763224431060,1.87733874,141.51,141.5,61.8]
[1763224431268,24.52853874,141.51,141.5,61.8]
[1763224431562,25.17853874,141.51,141.5,61.8]
[1763224432087,24.52853874,141.51,141.5,61.8]
[1763224432465,25.17853874,141.51,141.5,61.8]
[1763224432695,2.07733874,141.52,141.5,62.5]
[1763224432884,0.2,141.52,141.5,62.5]
[1763224433391,2.07733874,141.52,141.5,62.5]
[1763224435485,0.2,141.52,141.5,62.5]
[1763224435695,2.07733874,141.52,141.5,62.5]
[1763224435870,2.07733874,141.52,141.5,61.8]
[1763224436193,2.07733874,141.52,141.5,62.5]
[1763224436403,2.72733874,141.52,141.5,61.8]
[1763224436779,2.07733874,141.52,141.5,61.8]
[1763224437073,2.07733874,141.52,141.5,62.5]
[1763224437279,2.52733874,141.51,141.5,61.8]
[1763224437892,2.07733874,141.52,141.5,61.8]
[1763224438192,2.72733874,141.52,141.5,61.8]
[1763224438569,1.87733874,141.51,141.5,61.8]
[1763224440787,1.87733874,141.51,141.49,61.8]
[1763224440788,2.52733874,141.51,141.49,61.8]
[1763224440992,1.87733874,141.5,141.49,61.8]
[1763224441178,1.87733874,141.51,141.49,62.5]
[1763224441483,0.2,141.52,141.49,62.5]
[1763224441688,1.87733874,141.51,141.49,62.5]
[1763224442278,2.07733874,141.52,141.5,0.7]
[1763224442482,2.72733874,141.52,141.49,62.5]
[1763224442782,1.87733874,141.51,141.49,62.5]
[1763224443305,1.87733874,141.51,141.49,61.8]
[1763224443504,1.87733874,141.51,141.49,62.5]
[1763224444606,2.07733874,141.52,141.49,62.5]
[1763224444773,2.72733874,141.52,141.49,62.5]
[1763224445096,2.72733874,141.52,141.51,24.52853874]
[1763224445097,0.2,141.52,141.51,24.52853874]
[1763224445295,0.2,141.52,141.51,86.32853874]
[1763224445503,0.2,141.52,141.51,87.02853874]
[1763224450211,1.87733874,141.58,141.55,61.4]
[1763224450212,24.52853874,141.58,141.55,61.4]
[1763224450593,25.17853874,141.58,141.55,61.4]
[1763224450889,22.6512,141.58,141.55,62.1]
[1763224452209,1.87733874,141.59,141.55,62.1]
[1763224452398,2.55733874,141.59,141.55,62.1]
[1763224453394,24.52853874,141.56,141.55,61.4]
[1763224453789,25.22853874,141.56,141.55,61.4]
[1763224454526,25.22853874,141.56,141.5,0.69]
[1763224454721,1.87733874,141.53,141.5,62.09]
[1763224454902,1.87733874,141.53,141.5,61.4]
[1763224455085,2.57733874,141.52,141.5,61.4]
[1763224455289,1.87733874,141.52,141.5,61.4]
[1763224456810,1.87733874,141.53,141.5,62.09]
[1763224457012,1.87733874,141.52,141.5,62.09]
[1763224457408,1.87733874,141.52,141.5,61.4]
[1763224457783,1.87733874,141.52,141.5,62.09]
[1763224457990,1.87733874,141.52,141.5,61.4]
[1763224458292,1.87733874,141.52,141.5,62.09]
[1763224458792,1.87733874,141.52,141.5,61.4]
[1763224459906,1.87733874,141.52,141.5,62.09]
[1763224460196,1.87733874,141.53,141.5,62.09]
[1763224460500,2.57733874,141.53,141.5,61.4]
[1763224460707,1.87733874,141.52,141.5,61.4]
[1763224461012,1.87733874,141.52,141.5,62.09]
[1763224461693,1.87733874,141.52,141.5,61.4]
[1763224461894,1.87733874,141.52,141.5,62.09]
[1763224462600,1.87733874,141.52,141.5,61.4]
[1763224462905,1.87733874,141.52,141.5,62.09]
[1763224464820,1.87733874,141.53,141.5,62.09]
[1763224465831,1.87733874,141.52,141.5,61.4]
[1763224466208,1.87733874,141.52,141.5,62.09]
[1763224468420,1.87733874,141.52,141.5,61.4]
[1763224468923,2.92870413,141.52,141.5,61.4]
[1763224469124,2.92870413,141.52,141.5,62.09]
[1763224474047,3.62870413,141.52,141.5,61.4]
[1763224474718,2.92870413,141.52,141.5,62.09]
[1763224477630,3.62870413,141.53,141.5,62.09]
[1763224477811,22.6512,141.55,141.51,0.69]
[1763224478019,22.6512,141.55,141.51,24.86441072]
[1763224478539,22.6512,141.55,141.52,0.69]
[1763224479741,26.27990413,141.55,141.52,0.69]
[1763224480237,2.92870413,141.53,141.51,61.4]
[1763224480541,2.92870413,141.52,141.51,61.4]
[1763224480726,0.7,141.52,141.51,61.4]
[1763224480935,3.62870413,141.52,141.51,61.4]
[1763224483141,2.92870413,141.52,141.51,61.4]
[1763224483739,3.61870413,141.53,141.51,61.4]
[1763224484436,0.69,141.53,141.51,61.4]
[1763224484645,22.6512,141.55,141.52,0.72]
[1763224484939,9.78882769,141.58,141.52,65.04870413]
[1763224484940,3.61870413,141.58,141.52,65.04870413]
[1763224485134,2.92870413,141.59,141.54,2.92870413]
[1763224485525,3.61870413,141.59,141.55,0.72]
[1763224485743,3.61870413,141.59,141.55,62.12]
[1763224486416,3.61870413,141.58,141.55,61.4]
[1763224487137,26.26990413,141.57,141.55,61.4]
[1763224492039,25.57990413,141.57,141.55,61.4]
[1763224492342,25.57990413,141.57,141.55,62.12]
[1763224493543,0.2,141.6,141.56,0.72]
[1763224493750,3.81870413,141.6,141.56,0.72]
[1763224494849,3.12870413,141.6,141.56,0.72]
[1763224495041,3.81870413,141.6,141.56,0.72]
[1763224495342,3.61870413,141.59,141.56,0.72]
[1763224496650,0.69,141.59,141.56,0.72]
[1763224496858,3.61870413,141.59,141.56,0.72]
[1763224497036,3.61870413,141.59,141.56,62.12]
[1763224497535,0.2,141.6,141.56,62.12]
[1763224497536,2.92870413,141.57,141.56,61.4]
[1763224498029,3.61870413,141.57,141.56,61.4]
[1763224500254,3.61870413,141.57,141.53,62.12]
[1763224500458,3.61870413,141.56,141.53,62.12]
[1763224500952,59.78882769,141.59,141.53,61.4]
[1763224500953,2.92870413,141.54,141.53,61.4]
[1763224501251,0.69,141.58,141.54,0.72]
[1763224501452,0.69,141.58,141.54,62.12]
[1763224501453,2.92870413,141.58,141.54,62.12]
[1763224501637,25.38571299,141.6,141.54,62.12]
[1763224501638,0.2,141.6,141.57,2.92870413]
[1763224502058,0.2,141.6,141.58,0.72]
[1763224502235,0.2,141.6,141.59,2.92870413]
[1763224502855,0.2,141.6,141.59,3.64870413]
[1763224504152,0.2,141.6,141.59,6.47946029]
[1763224504740,0.2,141.6,141.59,3.55075616]
[1763224505764,0.2,141.6,141.59,2.83075616]
[1763224506349,0.2,141.6,141.59,3.55075616]
[1763224508950,0.2,141.61,141.6,61.2]
[1763224509256,0.2,141.61,141.6,61.92]
[1763224509648,0.2,141.61,141.6,64.84870413]
[1763224512148,0.2,141.61,141.6,67.67905969]
[1763224512346,0.2,141.61,141.6,64.75035556]
[1763224512558,0.2,141.61,141.6,2.83035556]
[1763224512863,0.2,141.61,141.6,0.67]
[1763224513337,0.2,141.61,141.59,2.8309565]
[1763224513538,0.2,141.61,141.59,3.5209565]
[1763224513956,0.2,141.61,141.6,0.69]
[1763224515540,0.2,141.61,141.6,3.61870413]
[1763224517180,0.2,141.64,141.63,60.6]
[1763224517542,0.2,141.64,141.63,61.29]
[1763224518445,0.2,141.64,141.63,64.12035556]
[1763224519663,0.2,141.64,141.63,63.43035556]
[1763224519968,0.2,141.64,141.63,60.6]
[1763224530579,0.86,141.64,141.63,60.6]
[1763224531958,22.6512,141.63,141.6,61.8]
[1763224532251,1.87123086,141.62,141.6,61.8]
[1763224532448,0.66,141.62,141.6,61.8]
[1763224533355,2.53123086,141.62,141.6,61.8]
[1763224534053,0.66,141.61,141.6,61.8]
[1763224534452,25.18243086,141.61,141.57,61.8]
[1763224534765,2.53123086,141.6,141.57,61.8]
[1763224535070,0.66,141.59,141.57,61.8]
[1763224538867,2.53123086,141.59,141.54,61.8]
[1763224539079,2.53123086,141.58,141.54,62.49]
[1763224539456,0.66,141.57,141.54,62.49]
[1763224541669,0.66,141.58,141.54,62.49]
[1763224541874,2.53123086,141.58,141.54,62.49]
[1763224542456,0.66,141.57,141.54,61.8]
[1763224542657,22.6512,141.54,141.5,61.8]
[1763224542869,1.87123086,141.52,141.5,61.8]
[1763224543068,1.87123086,141.51,141.47,62.49]
[1763224543465,2.52123086,141.51,141.47,62.49]
[1763224544556,2.52123086,141.52,141.48,0.7]
[1763224544971,2.52123086,141.52,141.47,61.8]
[1763224545255,2.52123086,141.51,141.47,62.5]
[1763224545465,2.52123086,141.51,141.47,61.8]
[1763224545663,0.65,141.5,141.47,61.8]
[1763224545857,2.52123086,141.5,141.47,61.8]
[1763224546462,2.52123086,141.5,141.45,61.9]
[1763224546463,2.52123086,141.49,141.45,61.9]
[1763224546678,2.52123086,141.49,141.45,62.6]
[1763224546869,2.52123086,141.49,141.45,0.1]
[1763224546870,2.52123086,141.48,141.45,0.1]
[1763224547073,1.87123086,141.46,141.45,0.1]
[1763224547276,0.65,141.47,141.45,0.1]
[1763224547471,1.87123086,141.46,141.45,0.1]
[1763224547667,24.52243086,141.46,141.45,0.1]
[1763224547985,25.17243086,141.46,141.45,0.1]
[1763224550393,1.87123086,141.46,141.45,0.1]
[1763224550761,1.87123086,141.48,141.45,0.8]
[1763224550963,2.52123086,141.49,141.45,0.8]
[1763224551592,2.52123086,141.48,141.45,0.8]
[1763224551974,1.87123086,141.47,141.45,0.1]
[1763224552175,1.87123086,141.46,141.45,0.1]
[1763224552383,2.52123086,141.46,141.45,0.1]
[1763224552579,1.87123086,141.47,141.45,0.8]
[1763224552784,1.87123086,141.47,141.45,62.6]
[1763224552991,1.87123086,141.46,141.45,61.9]
[1763224553199,2.52123086,141.46,141.45,61.9]
[1763224554396,1.87123086,141.46,141.45,61.9]
[1763224554603,25.17243086,141.48,141.45,62.6]
[1763224554795,24.52243086,141.48,141.45,62.6]
[1763224555675,1.87123086,141.48,141.45,0.8]
[1763224555904,1.87123086,141.5,141.46,2.57123086]
[1763224556398,1.87123086,141.5,141.47,0.7]
[1763224556601,2.52123086,141.5,141.45,63.77123086]
[1763224556787,2.52123086,141.5,141.46,0.7]
[1763224557184,1.87123086,141.5,141.46,0.7]
[1763224557884,1.87123086,141.47,141.45,61.9]
[1763224558398,1.87123086,141.47,141.45,62.6]
[1763224559499,1.87123086,141.48,141.45,62.6]
[1763224559898,1.87123086,141.48,141.45,61.9]
[1763224560212,1.87123086,141.48,141.46,0.7]
[1763224560803,1.87123086,141.48,141.45,62.6]
[1763224560804,2.52123086,141.48,141.45,62.6]
[1763224561310,1.87123086,141.48,141.45,62.6]
[1763224561889,2.52123086,141.48,141.45,62.6]
[1763224562804,1.87123086,141.48,141.45,62.6]
[1763224563006,2.52123086,141.48,141.45,62.6]
[1763224563607,1.87123086,141.48,141.45,62.6]
[1763224563815,32.44002769,141.52,141.46,2.57123086]
[1763224564135,1.87123086,141.51,141.47,0.7]
[1763224564612,1.87123086,141.5,141.47,0.7]
[1763224564910,2.52123086,141.5,141.47,0.7]
[1763224565111,1.87123086,141.49,141.47,0.7]
[1763224565312,1.87123086,141.49,141.47,62.5]
[1763224566919,2.52123086,141.49,141.47,61.8]
[1763224567106,2.52123086,141.48,141.47,61.8]
[1763224569925,0.65,141.52,141.47,62.5]
[1763224570212,50.0,141.53,141.48,2.57123086]
[1763224570213,1.87123086,141.53,141.48,2.57123086]
[1763224570590,1.87123086,141.52,141.49,0.7]
[1763224571401,2.56123086,141.52,141.49,0.7]
[1763224571717,1.87123086,141.5,141.47,61.8]
[1763224571890,1.87123086,141.49,141.47,61.8]
[1763224572091,1.87123086,141.51,141.48,0.72]
[1763224572895,0.69,141.53,141.48,0.72]
[1763224573221,1.87123086,141.52,141.48,64.39123086]
[1763224573390,9.78882769,141.54,141.48,64.39123086]
[1763224573587,1.87123086,141.52,141.49,0.69]
[1763224574190,1.87123086,141.53,141.49,64.36123086]
[1763224574620,1.87123086,141.53,141.5,0.69]
[1763224574819,1.87123086,141.52,141.5,0.69]
[1763224575018,1.87123086,141.52,141.49,61.8]
[1763224575318,1.87123086,141.52,141.49,62.49]
[1763224576014,1.87123086,141.51,141.49,62.49]
[1763224577111,1.87123086,141.52,141.49,61.8]
[1763224577316,1.87123086,141.52,141.5,0.69]
[1763224577816,1.87123086,141.53,141.5,0.69]
[1763224578311,1.87123086,141.54,141.5,2.56123086]
[1763224578718,1.87123086,141.54,141.51,0.69]
[1763224578917,1.87123086,141.54,141.51,62.49]
[1763224581320,9.78882769,141.58,141.53,1.87123086]
[1763224581513,1.87123086,141.58,141.54,0.69]
[1763224582220,1.87123086,141.57,141.54,0.69]
[1763224583131,1.87123086,141.55,141.53,61.8]
[1763224583430,1.87123086,141.54,141.53,61.8]
[1763224583815,1.87123086,141.54,141.51,61.8]
[1763224583816,2.53123086,141.54,141.51,61.8]
[1763224583999,1.87123086,141.53,141.51,61.8]
[1763224584203,2.53123086,141.53,141.51,61.8]
[1763224584540,1.87123086,141.53,141.51,62.49]
[1763224586230,0.66,141.55,141.51,62.49]
[1763224586409,1.87123086,141.54,141.51,62.49]
[1763224587202,2.53123086,141.54,141.51,62.49]
[1763224590653,22.6512,141.56,141.52,0.69]
[1763224590654,1.87123086,141.55,141.52,0.69]
[1763224590835,1.87123086,141.54,141.52,0.69]
[1763224591923,0.66,141.55,141.52,0.69]
[1763224592128,1.87123086,141.55,141.52,0.69]
[1763224592343,2.53123086,141.57,141.52,64.36123086]
[1763224592531,2.53123086,141.57,141.53,0.69]
[1763224592848,2.92633101,141.58,141.53,65.41633101]
[1763224593051,2.92633101,141.58,141.54,0.69]
[1763224593229,2.92633101,141.57,141.54,0.69]
[1763224594820,2.92633101,141.58,141.54,0.69]
[1763224596043,2.92633101,141.58,141.54,3.61633101]
[1763224596245,2.92633101,141.59,141.55,2.92633101]
[1763224596544,3.58633101,141.6,141.56,2.92633101]
[1763224596724,2.92633101,141.6,141.56,62.49]
[1763224596924,3.58633101,141.6,141.57,0.69]
[1763224597342,2.92633101,141.6,141.57,0.69]
[1763224597548,2.92633101,141.61,141.57,0.69]
[1763224597857,2.92633101,141.61,141.57,3.61633101]
[1763224598066,2.92633101,141.61,141.58,0.69]
[1763224598572,25.57753101,141.62,141.58,62.49]
[1763224598742,26.23753101,141.62,141.59,0.69]
[1763224598941,26.23753101,141.62,141.59,62.49]
[1763224599468,2.92633101,141.61,141.59,62.49]
[1763224602457,3.58633101,141.62,141.59,62.49]
[1763224602666,22.8512,141.64,141.6,0.69]
[1763224602852,2.92633101,141.62,141.6,0.69]
[1763224603052,2.92633101,141.63,141.6,62.49]
[1763224603250,2.92633101,141.63,141.61,0.69]
[1763224603563,2.92633101,141.62,141.6,62.49]
[1763224605643,2.92633101,141.63,141.6,62.49]
[1763224606159,3.58633101,141.63,141.6,62.49]
[1763224608267,0.66,141.63,141.6,62.49]
[1763224608453,3.58633101,141.63,141.6,62.49]
[1763224609060,0.2,141.64,141.61,0.69]
[1763224609259,3.12633101,141.64,141.61,0.69]
[1763224609859,3.78633101,141.64,141.61,0.69]
[1763224610063,3.12633101,141.64,141.61,0.69]
[1763224610249,0.2,141.64,141.61,0.69]
[1763224610569,3.12633101,141.64,141.61,0.69]
[1763224612269,3.78633101,141.64,141.61,0.69]
[1763224612770,2.92633101,141.63,141.61,0.69]
[1763224613071,3.12633101,141.64,141.61,0.69]
[1763224613269,0.2,141.64,141.61,0.69]
[1763224613473,3.12633101,141.64,141.61,0.69]
[1763224614572,3.12633101,141.64,141.61,62.49]
[1763224614768,0.86,141.64,141.61,62.49]
[1763224614967,2.92633101,141.63,141.61,62.49]
[1763224616066,2.92633101,141.63,141.61,61.8]
[1763224616067,2.92633101,141.62,141.61,61.8]
[1763224616374,0.2,141.64,141.62,0.69]
[1763224616573,0.2,141.64,141.62,62.49]
[1763224618771,0.2,141.64,141.62,61.8]
[1763224618979,0.2,141.64,141.62,62.49]
[1763224620366,0.2,141.64,141.63,0.69]
[1763224620569,0.2,141.64,141.62,61.8]
[1763224620856,0.2,141.64,141.62,62.49]
[1763224621195,3.12633101,141.64,141.62,62.49]
[1763224621499,0.2,141.64,141.63,0.69]
[1763224623575,0.2,141.64,141.62,61.8]
[1763224623791,0.2,141.64,141.62,62.49]
[1763224623966,0.2,141.64,141.62,61.8]
[1763224624166,0.2,141.65,141.64,61.6]
[1763224624793,0.2,141.65,141.64,62.29]
[1763224625471,0.2,141.65,141.64,65.21633101]
[1763224628078,0.2,141.65,141.64,62.29]
[1763224628275,0.2,141.65,141.64,61.6]
[1763224629285,0.2,141.65,141.64,62.29]
[1763224630367,0.2,141.65,141.64,65.21633101]
[1763224633191,0.2,141.67,141.66,61.2]
[1763224633393,0.2,141.67,141.66,64.12633101]
[1763224633694,0.2,141.67,141.66,64.84633101]
[1763224635000,0.2,141.67,141.66,167.94633101]
[1763224635886,0.2,141.67,141.66,165.02]
[1763224636093,0.2,141.67,141.66,164.3]
[1763224636284,0.2,141.67,141.66,61.2]
[1763224638000,0.2,141.67,141.66,61.92]
[1763224639495,0.2,141.67,141.66,64.84633101]
[1763224646600,0.2,141.69,141.68,60.8]
[1763224649237,0.2,141.69,141.68,61.52]
[1763224649681,0.2,141.69,141.68,60.8]
[1763224650401,3.78633101,141.69,141.68,60.8]
[1763224650809,26.43753101,141.69,141.68,60.8]
[1763224651315,9.78882769,141.68,141.62,60.8]
[1763224651516,9.78882769,141.68,141.58,103.1]
[1763224651517,2.92633101,141.63,141.58,61.52]
[1763224651813,2.92633101,141.63,141.59,0.72]
[1763224652106,0.66,141.62,141.58,63.72633101]
[1763224652289,3.58633101,141.62,141.58,64.44633101]
[1763224652492,3.58633101,141.62,141.58,61.52]
[1763224652992,3.58633101,141.62,141.59,0.72]
[1763224653206,3.58633101,141.62,141.58,61.52]
[1763224653912,2.92633101,141.62,141.58,60.8]
[1763224654102,3.58633101,141.62,141.59,0.72]
[1763224654413,3.58633101,141.62,141.59,61.52]
[1763224654898,2.53178408,141.62,141.59,61.52]
[1763224655690,1.87178408,141.62,141.59,61.52]
[1763224656008,39.92716401,141.66,141.6,0.72]
[1763224656009,0.66,141.65,141.6,0.72]
[1763224656315,1.87178408,141.64,141.6,2.59178408]
[1763224656691,2.53178408,141.64,141.6,0.72]
[1763224657989,2.53178408,141.64,141.6,2.59178408]
[1763224657990,1.87178408,141.64,141.6,2.59178408]
[1763224658189,1.87178408,141.65,141.61,1.87178408]
[1763224658389,1.87178408,141.65,141.61,63.39178408]
[1763224658609,1.87178408,141.65,141.62,0.72]
[1763224659212,0.66,141.67,141.62,63.39178408]
[1763224659213,2.53178408,141.67,141.62,63.39178408]
[1763224659413,22.6512,141.68,141.62,61.52]
[1763224659618,1.87178408,141.66,141.63,0.72]
[1763224659996,2.53178408,141.67,141.63,0.72]
[1763224663207,1.87178408,141.66,141.63,0.72]
[1763224664207,1.87178408,141.66,141.63,61.52]
[1763224664718,1.87178408,141.64,141.63,60.8]
[1763224665219,2.57178408,141.64,141.63,60.8]
[1763224671027,1.87178408,141.65,141.63,61.48]
[1763224671324,1.87178408,141.66,141.64,0.68]
[1763224672527,1.87178408,141.67,141.64,60.8]
[1763224672826,2.57178408,141.67,141.64,61.48]
[1763224674230,0.7,141.68,141.64,61.48]
[1763224674435,1.87178408,141.67,141.64,61.48]
[1763224675424,1.87178408,141.66,141.64,60.8]
[1763224675809,2.57178408,141.66,141.64,60.8]
[1763224676235,1.87178408,141.67,141.65,0.68]
[1763224676533,2.57178408,141.67,141.64,61.48]
[1763224676830,1.87178408,141.65,141.64,60.8]
[1763224677332,1.87178408,141.66,141.64,60.8]
[1763224677532,1.87178408,141.66,141.64,61.48]
[1763224677912,2.57178408,141.66,141.64,60.8]
[1763224678533,0.7,141.67,141.64,61.48]
[1763224678717,1.87178408,141.66,141.64,61.48]
[1763224680637,2.57178408,141.66,141.64,60.8]
[1763224681107,1.87178408,141.65,141.64,60.8]
[1763224681310,2.57178408,141.65,141.64,60.8]
[1763224681916,1.87178408,141.65,141.64,60.8]
[1763224682112,2.57178408,141.65,141.64,60.8]
[1763224682927,1.87178408,141.65,141.64,60.8]
[1763224683119,2.57178408,141.65,141.64,60.8]
[1763224686139,1.87178408,141.65,141.64,60.8]
[1763224688039,1.87178408,141.66,141.64,61.48]
[1763224689447,1.87178408,141.65,141.64,60.8]
[1763224690520,2.57178408,141.65,141.64,60.8]
[1763224690945,1.87178408,141.65,141.64,60.8]
[1763224691151,2.57178408,141.65,141.64,60.8]
[1763224691321,1.87178408,141.65,141.64,60.8]
[1763224692448,2.59178408,141.65,141.64,60.8]
[1763224692619,1.87178408,141.65,141.64,60.8]
[1763224696046,1.87178408,141.66,141.64,61.52]
[1763224696831,1.87178408,141.66,141.64,60.8]
[1763224697038,1.87178408,141.66,141.65,0.72]
[1763224697241,1.87178408,141.67,141.65,0.72]
[1763224697646,2.59178408,141.67,141.65,0.72]
[1763224697844,2.59178408,141.67,141.64,61.52]
[1763224699269,1.87178408,141.66,141.64,61.52]
[1763224700632,1.87178408,141.67,141.64,60.8]
[1763224700846,1.87178408,141.67,141.65,0.72]
[1763224702354,1.87178408,141.67,141.65,61.52]
[1763224702750,2.59178408,141.67,141.65,60.8]